bitfinex-derivatives/quotes_BNBF0:USTF0_20250101
["timestamp","ask_amount","ask_price","bid_price","bid_amount"]
[1735702655792,1.05405819,706.71,705.76,1.06261399]
[1735702656493,1.05405819,706.71,705.54,1.3460848]
[1735702656494,0.26068072,706.7,705.78,1.06261399]
[1735702656686,0.26068072,706.69,705.78,1.06261399]
[1735702656887,0.26068072,706.68,705.78,1.06261399]
[1735702657091,1.05405819,706.72,705.78,1.06261399]
[1735702657295,0.26068065,706.71,705.78,1.06261399]
[1735702657591,1.05405819,706.69,705.74,1.06261399]
[1735702657788,0.26068065,706.68,705.74,1.06261399]
[1735702658792,0.26068065,706.68,705.75,1.06261399]
[1735702659293,1.05405819,706.69,705.75,1.06261399]
[1735702659793,1.05405819,706.69,705.74,1.06261399]
[1735702659989,0.2606783,706.68,705.74,1.06261399]
[1735702660395,1.05405819,706.69,705.74,1.06261399]
[1735702661196,1.05405819,706.7,705.75,1.06261399]
[1735702662599,1.05405819,706.71,705.71,1.06261399]
[1735702663595,1.05405819,706.72,705.71,1.06261399]
[1735702663995,0.26067536,706.71,705.71,1.06261399]
[1735702664597,0.26067536,706.71,705.72,1.06261399]
[1735702664895,1.05405819,706.73,705.72,1.06261399]
[1735702665096,0.26067281,706.72,705.72,1.06261399]
[1735702665696,1.314731,706.72,705.75,1.06261399]
[1735702665895,0.26067281,706.71,705.75,1.06261399]
[1735702666697,1.314731,706.71,705.73,1.06261399]
[1735702666895,1.05405819,706.71,705.73,1.06261399]
[1735702670097,0.28296948,706.79,705.62,1.06261399]
[1735702671298,0.28296948,706.79,705.64,1.06261399]
[1735702672099,0.28296948,706.79,705.65,1.06261399]
[1735702677901,0.28296948,706.79,705.66,1.06261399]
[1735702678298,0.26066884,706.78,705.66,1.06261399]
[1735702678998,1.05405819,706.74,705.75,1.06261399]
[1735702679995,1.05405819,706.72,705.75,1.06261399]
[1735702681095,1.05405819,706.7,705.73,1.06261399]
[1735702682103,1.05405819,706.7,705.74,1.06261399]
[1735702683604,1.05405819,706.69,705.77,1.06261399]
[1735702684604,1.05405819,706.69,705.78,1.06261399]
[1735702685503,1.05405819,706.69,705.77,1.06261399]
[1735702686800,1.05405819,706.68,705.78,1.06261399]
[1735702688005,1.05405819,706.67,705.8,1.06261399]
[1735702688805,1.05405819,706.67,705.79,1.06261399]
[1735702693206,1.05405819,706.66,705.81,1.06261399]
[1735702694508,1.05405819,706.66,705.59,1.06261399]
[1735702694509,1.05405819,706.64,705.78,1.06261399]
[1735702694706,0.26067238,706.63,705.78,1.06261399]
[1735702695607,1.05405819,706.62,705.85,1.06261399]
[1735702696510,0.26067188,706.61,705.85,1.06261399]
[1735702696811,1.31473007,706.61,705.86,1.06261399]
[1735702697005,0.260677,706.6,705.86,1.06261399]
[1735702697311,1.05405819,706.61,705.86,1.06261399]
[1735702697712,1.05405819,706.6,705.85,1.06261399]
[1735702701813,0.28296948,706.79,705.55,0.71587218]
[1735702701814,1.05405819,706.61,705.86,1.06261399]
[1735702702915,1.05405819,706.6,705.86,1.06261399]
[1735702705015,1.05405819,706.6,705.67,1.06261399]
[1735702705016,1.05405819,706.59,705.85,1.06261399]
[1735702707217,1.05405819,706.63,705.84,1.06261399]
[1735702708311,0.28296948,706.79,705.85,1.06261399]
[1735702708312,1.05405819,706.64,705.85,1.06261399]
[1735702709424,1.05405819,706.64,705.87,1.06261399]
[1735702710523,0.28296948,706.79,705.83,1.06261399]
[1735702711524,0.28296948,706.79,705.81,1.06261399]
[1735702712718,0.28296948,706.79,705.76,1.06261399]
[1735702714124,0.28296948,706.79,705.54,0.28347081]
[1735702714125,0.28296948,706.79,705.74,1.06261399]
[1735702715426,0.28296948,706.79,705.73,1.06261399]
[1735702716526,0.28296948,706.79,705.72,1.06261399]
[1735702717728,0.28296948,706.79,705.71,1.06261399]
[1735702719732,0.28296948,706.79,705.7,1.06261399]
[1735702720724,0.28296948,706.79,705.54,0.28347081]
[1735702720725,0.28296948,706.79,705.66,1.06261399]
[1735702721831,0.28296948,706.79,705.68,1.06261399]
[1735702723929,0.28296948,706.79,705.74,1.06261399]
[1735702729529,0.26063044,706.78,705.74,1.06261399]
[1735702730537,0.26063044,706.78,705.82,1.06261399]
[1735702731636,0.26063007,706.77,705.82,1.06261399]
[1735702731835,0.26063007,706.76,705.82,1.06261399]
[1735702732033,0.28296948,706.79,705.82,1.06261399]
[1735702732234,0.26062738,706.78,705.82,1.06261399]
[1735702732437,0.26062738,706.78,705.84,1.06261399]
[1735702734938,0.2606389,706.77,705.84,1.06261399]
[1735702735140,0.2606389,706.76,705.84,1.06261399]
[1735702735339,0.2606389,706.75,705.84,1.06261399]
[1735702735637,0.2606389,706.74,705.84,1.06261399]
[1735702735837,0.2606389,706.73,705.84,1.06261399]
[1735702736038,0.28296948,706.79,705.83,1.06261399]
[1735702736334,0.26063438,706.78,705.83,1.06261399]
[1735702737137,0.26063438,706.78,705.85,1.06261399]
[1735702737939,0.26063438,706.78,705.87,1.06261399]
[1735702739039,0.26063438,706.78,705.59,1.06261399]
[1735702739040,0.26063438,706.78,705.89,1.06261399]
[1735702741340,0.28296948,706.79,705.9,1.06261399]
[1735702741541,0.26062935,706.78,705.9,1.06261399]
[1735702742638,0.26062935,706.78,705.92,1.06261399]
[1735702743642,1.05405819,706.74,705.95,1.06261399]
[1735702743843,0.26062935,706.73,705.95,1.06261399]
[1735702744345,1.05405819,706.74,705.95,1.06261399]
[1735702744643,0.26062987,706.73,705.95,1.06261399]
[1735702745145,1.31468806,706.73,705.97,1.06261399]
[1735702745344,1.05405819,706.73,705.97,1.06261399]
[1735702745740,1.05405819,706.73,705.98,1.06261399]
[1735702747948,1.05405819,706.74,706.0,1.06261399]
[1735702749045,0.28296948,706.79,705.79,1.06261399]
[1735702750048,0.28296948,706.79,705.9,1.06261399]
[1735702751150,1.47792666,707.12,705.9,1.06261399]
[1735702751351,1.47792666,707.12,705.88,1.06261399]
[1735702751553,0.26055905,707.11,705.88,1.06261399]
[1735702752353,0.26055905,707.11,705.89,1.06261399]
[1735702753455,0.26055905,707.11,705.94,1.06261399]
[1735702754655,1.05405819,707.1,705.97,1.06261399]
[1735702754854,0.2605606,707.09,705.97,1.06261399]
[1735702755553,0.2605606,707.09,705.57,0.7140767]
[1735702755554,0.2605606,707.09,705.96,1.06261399]
[1735702755853,0.2605606,707.08,705.96,1.06261399]
[1735702756049,0.2605606,707.07,705.96,1.06261399]
[1735702756247,0.2605606,707.06,705.96,1.06261399]
[1735702756451,0.2605606,707.05,705.96,1.06261399]
[1735702756645,1.05405819,707.11,705.96,1.06261399]
[1735702756850,0.26053111,707.1,705.96,1.06261399]
[1735702757053,1.05405819,707.23,705.98,1.06261399]
[1735702757251,0.26051391,707.22,705.98,1.06261399]
[1735702757448,0.26051357,707.22,705.98,1.06261399]
[1735702758456,0.26051357,707.22,705.99,1.06261399]
[1735702758654,0.26051357,707.21,705.99,1.06261399]
[1735702758951,1.47756061,707.32,705.99,1.06261399]
[1735702759154,1.05405819,707.34,705.99,1.06261399]
[1735702759455,0.26046819,707.33,706.03,1.06261399]
[1735702759649,1.47732016,707.4,706.03,1.06261399]
[1735702759848,0.26046468,707.39,706.03,1.06261399]
[1735702760053,0.26046416,707.38,706.03,1.06261399]
[1735702760249,0.26046416,707.37,706.03,1.06261399]
[1735702760454,0.26046416,707.36,705.99,1.06261399]
[1735702760754,0.26046416,707.35,706.0,0.28328611]
[1735702760949,1.47732016,707.4,706.0,0.28328611]
[1735702761153,0.26046277,707.39,706.0,0.28328611]
[1735702762551,1.47732016,707.4,706.0,0.28328611]
[1735702762755,0.26046308,707.39,706.0,0.28328611]
[1735702763055,0.26046304,707.38,706.0,0.28328611]
[1735702763255,0.26046304,707.37,706.0,0.28328611]
[1735702763455,0.26046304,707.36,706.0,0.28328611]
[1735702763657,0.26046304,707.39,706.0,0.28328611]
[1735702763857,0.26046304,707.38,706.0,0.28328611]
[1735702764157,0.26046304,707.37,706.0,0.28328611]
[1735702764356,0.26046304,707.36,706.0,0.28328611]
[1735702764556,0.26046304,707.35,706.0,0.28328611]
[1735702764752,0.26046304,707.34,706.0,0.28328611]
[1735702764958,0.26046304,707.33,706.0,0.28328611]
[1735702765151,1.47732016,707.4,706.0,0.28328611]
[1735702765650,0.26046786,707.39,706.0,0.28328611]
[1735702766055,1.47732016,707.4,706.0,0.28328611]
[1735702766255,0.26047313,707.39,706.0,0.28328611]
[1735702766756,0.26047319,707.38,706.0,0.28328611]
[1735702767057,0.26047319,707.37,706.0,0.28328611]
[1735702767258,0.26047319,707.36,706.0,0.28328611]
[1735702767457,0.26047319,707.35,706.0,0.28328611]
[1735702767657,0.26047319,707.34,706.0,0.28328611]
[1735702767958,0.26047319,707.33,706.0,0.28328611]
[1735702768157,1.47732016,707.4,706.0,0.28328611]
[1735702768158,0.26046863,707.32,706.0,0.28328611]
[1735702768355,1.47732016,707.4,706.0,0.28328611]
[1735702768656,0.26046831,707.39,706.0,0.28328611]
[1735702770761,0.26047024,707.38,706.0,0.28328611]
[1735702770954,0.26047024,707.37,706.0,0.28328611]
[1735702771154,0.26047024,707.36,706.0,0.28328611]
[1735702771359,0.26047024,707.35,706.0,0.28328611]
[1735702771560,0.26047024,707.34,706.0,0.28328611]
[1735702771761,0.26047024,707.33,706.0,0.28328611]
[1735702771957,0.26047024,707.32,706.0,0.28328611]
[1735702772160,0.26047024,707.31,706.0,0.28328611]
[1735702772464,0.26047024,707.3,706.0,0.28328611]
[1735702772662,0.26047024,707.29,706.0,0.28328611]
[1735702772862,0.26047024,707.28,706.0,0.28328611]
[1735702773162,0.26047024,707.27,706.0,0.28328611]
[1735702773363,0.26047024,707.39,706.0,0.28328611]
[1735702773664,0.26047024,707.38,706.0,0.28328611]
[1735702773859,0.26047024,707.37,706.0,0.28328611]
[1735702774058,1.47732016,707.4,706.0,0.28328611]
[1735702774265,0.26047185,707.39,706.0,0.28328611]
[1735702776364,0.2605039,707.38,706.0,0.28328611]
[1735702776566,0.2605039,707.37,706.0,0.28328611]
[1735702776865,0.2605039,707.36,706.0,0.28328611]
[1735702777169,0.54324935,707.35,706.0,0.28328611]
[1735702777466,0.2605039,707.34,706.0,0.28328611]
[1735702778869,0.26053906,707.33,706.0,0.28328611]
[1735702779062,0.26053906,707.32,706.0,0.28328611]
[1735702779266,0.26053906,707.31,706.0,0.28328611]
[1735702779465,0.26053906,707.3,706.0,0.28328611]
[1735702779669,0.5433045,707.3,706.0,0.28328611]
[1735702779866,0.26053906,707.29,706.0,0.28328611]
[1735702780467,0.28277344,707.28,706.0,0.28328611]
[1735702780668,0.26053906,707.27,706.0,0.28328611]
[1735702780969,0.28278143,707.26,706.0,0.28328611]
[1735702781168,0.26053906,707.25,706.0,0.28328611]
[1735702781369,0.54332449,707.25,706.0,0.28328611]
[1735702781569,0.26054389,707.24,706.0,0.28328611]
[1735702784165,0.28278543,707.25,706.0,0.28328611]
[1735702784368,0.26052811,707.24,706.0,0.28328611]
[1735702786867,0.2605081,707.23,706.0,0.28328611]
[1735702787071,0.2605081,707.22,706.0,0.28328611]
[1735702787375,0.28278543,707.25,706.0,0.28328611]
[1735702787573,0.2605094,707.24,706.0,0.28328611]
[1735702788572,0.28278543,707.25,706.0,0.28328611]
[1735702789671,0.2605084,707.24,706.0,0.28328611]
[1735702789877,0.2605084,707.24,706.01,1.06261399]
[1735702790272,0.26051316,707.23,706.01,1.06261399]
[1735702790472,0.26051316,707.22,706.01,1.06261399]
[1735702790669,0.28278543,707.25,706.01,1.06261399]
[1735702790976,0.26050319,707.24,706.01,1.06261399]
[1735702791175,0.26050319,707.24,706.0,0.28328611]
[1735702791176,0.28278543,707.25,706.0,0.28328611]
[1735702791774,0.26050267,707.24,706.0,0.28328611]
[1735702792273,0.26050951,707.23,706.0,1.3459001]
[1735702792474,0.28278543,707.25,706.0,1.3459001]
[1735702792675,0.2605036,707.24,706.0,1.3459001]
[1735702793580,0.2605036,707.24,706.02,1.06261399]
[1735702794478,0.2605036,707.24,706.0,1.3459001]
[1735702794878,0.28278543,707.25,706.0,1.3459001]
[1735702795077,0.26051117,707.24,706.0,1.3459001]
[1735702795876,0.26051117,707.24,706.07,1.06261399]
[1735702797677,0.26050811,707.23,706.07,1.06261399]
[1735702797881,0.26050811,707.22,706.07,1.06261399]
[1735702798081,0.26050811,707.21,706.07,1.06261399]
[1735702798283,0.26050811,707.2,706.07,1.06261399]
[1735702798584,0.26050811,707.19,706.07,1.06261399]
[1735702798782,0.26050811,707.18,706.09,1.06261399]
[1735702798982,0.26051071,707.17,706.09,1.06261399]
[1735702799178,0.26051071,707.16,706.09,1.06261399]
[1735702799379,0.26051071,707.15,706.09,1.06261399]
[1735702799580,0.26051071,707.14,706.1,1.06261399]
[1735702799785,0.26051071,707.13,706.1,1.06261399]
[1735702799981,0.26051071,707.12,706.1,1.06261399]
[1735702800181,0.26051071,707.11,706.1,1.06261399]
[1735702800385,0.26051071,707.1,706.1,1.06261399]
[1735702800580,0.26051071,707.09,706.1,1.06261399]
[1735702800779,0.26051071,707.08,706.1,1.06261399]
[1735702800979,0.26051071,707.07,706.09,1.06261399]
[1735702801182,0.26051071,707.06,706.09,1.06261399]
[1735702801383,0.26051071,707.05,706.09,1.06261399]
[1735702801586,0.26051071,707.04,706.09,1.06261399]
[1735702801782,0.26051071,707.03,706.09,1.06261399]
[1735702801986,0.26051071,707.02,706.09,1.06261399]
[1735702802288,1.05405819,707.14,706.08,1.06261399]
[1735702802488,0.26052698,707.13,706.08,1.06261399]
[1735702803292,0.26052698,707.13,706.1,1.06261399]
[1735702803588,0.26052698,707.12,706.1,1.06261399]
[1735702803793,0.26052698,707.11,706.1,1.06261399]
[1735702803988,0.26052698,707.1,706.1,1.06261399]
[1735702804192,0.26052698,707.09,706.1,1.06261399]
[1735702804391,0.26052698,707.08,706.1,1.06261399]
[1735702804595,0.26052698,707.07,706.1,1.06261399]
[1735702804795,0.26053021,707.06,706.1,1.06261399]
[1735702805089,0.26053021,707.05,706.11,1.06261399]
[1735702805294,0.26053021,707.04,706.11,1.06261399]
[1735702805494,0.26053021,707.03,706.11,1.06261399]
[1735702805696,0.26053021,707.02,706.11,1.06261399]
[1735702805891,0.26053021,707.01,706.11,1.06261399]
[1735702806094,1.05405819,707.13,706.11,1.06261399]
[1735702806294,1.31459129,707.12,706.11,1.06261399]
[1735702806595,0.2605331,707.11,706.11,1.06261399]
[1735702807595,0.26053439,707.1,706.11,1.06261399]
[1735702807798,0.26053439,707.09,706.13,1.06261399]
[1735702809296,1.05405819,707.06,706.15,1.06261399]
[1735702809495,0.26053439,707.05,706.15,1.06261399]
[1735702810395,0.26052663,707.04,706.15,1.06261399]
[1735702810600,0.26052663,707.03,706.16,1.06261399]
[1735702810797,0.26052663,707.02,706.16,1.06261399]
[1735702810993,0.26052663,707.01,706.16,1.06261399]
[1735702811192,0.26052663,707.0,706.16,1.06261399]
[1735702811391,1.05405819,707.05,706.16,1.06261399]
[1735702811595,0.26052931,707.04,706.18,1.06261399]
[1735702811791,0.26052931,707.03,706.18,1.06261399]
[1735702812095,0.26052931,707.02,706.18,1.06261399]
[1735702812296,1.05405819,707.06,706.18,1.06261399]
[1735702812297,0.26052931,707.01,706.18,1.06261399]
[1735702812494,1.05405819,707.06,706.18,1.06261399]
[1735702812695,0.26052546,707.05,706.18,1.06261399]
[1735702812892,0.26052289,707.04,706.18,1.06261399]
[1735702813099,0.26052289,707.03,706.18,1.06261399]
[1735702813292,1.05405819,707.06,706.18,1.06261399]
[1735702813495,0.26051344,707.05,706.2,1.06261399]
[1735702813696,0.26051344,707.04,706.2,1.06261399]
[1735702813999,0.26051344,707.03,706.2,1.06261399]
[1735702814197,0.26051344,707.02,706.2,1.06261399]
[1735702814402,1.05405819,707.08,706.2,1.06261399]
[1735702814701,0.26051556,707.07,706.21,1.06261399]
[1735702814898,0.26051556,707.06,706.21,1.06261399]
[1735702815098,0.26051556,707.05,706.21,1.06261399]
[1735702815399,0.26051556,707.04,706.21,1.06261399]
[1735702815598,0.26052407,707.03,706.21,1.06261399]
[1735702815800,0.26052407,707.02,706.22,1.06261399]
[1735702815994,0.26052407,707.01,706.22,1.06261399]
[1735702816199,1.05405819,707.09,706.22,1.06261399]
[1735702816402,0.26052446,707.08,706.22,1.06261399]
[1735702816703,1.05405819,707.06,706.2,1.06261399]
[1735702816901,0.26052446,707.05,706.2,1.06261399]
[1735702818206,1.4775031,707.22,706.01,1.06261399]
[1735702818207,1.05405819,707.08,706.22,1.06261399]
[1735702818504,0.26051645,707.07,706.22,1.06261399]
[1735702819505,0.26051645,707.07,706.23,1.06261399]
[1735702820802,1.31457464,707.07,706.22,1.06261399]
[1735702821001,0.26051415,707.06,706.22,1.06261399]
[1735702821606,1.05405819,707.07,706.22,1.06261399]
[1735702821806,0.26051531,707.06,706.22,1.06261399]
[1735702822307,0.26051531,707.06,706.24,1.06261399]
[1735702822508,0.26051531,707.05,706.24,1.06261399]
[1735702822806,0.26051531,707.04,706.24,1.06261399]
[1735702823007,0.26051531,707.03,706.24,1.06261399]
[1735702823207,1.05405819,707.08,706.24,1.06261399]
[1735702823402,0.26051482,707.07,706.24,1.06261399]
[1735702823709,0.26051522,707.06,706.24,1.06261399]
[1735702823907,0.26051522,707.05,706.24,1.06261399]
[1735702824108,0.26051522,707.04,706.24,1.06261399]
[1735702824310,1.05405819,707.08,706.24,1.06261399]
[1735702824610,0.26051518,707.07,706.24,1.06261399]
[1735702825603,1.05405819,707.08,706.24,1.06261399]
[1735702826012,1.05405819,707.07,706.24,1.06261399]
[1735702827011,1.05405819,707.16,706.08,1.06261399]
[1735702827510,0.26053496,707.15,706.08,1.06261399]
[1735702828408,1.05405819,707.16,706.08,1.06261399]
[1735702828710,0.26054362,707.15,706.08,1.06261399]
[1735702829210,0.26054362,707.15,706.0,0.28328611]
[1735702829211,1.05405819,707.14,706.06,1.06261399]
[1735702829418,0.26054362,707.13,706.06,1.06261399]
[1735702829612,1.05405819,707.14,706.06,1.06261399]
[1735702831710,1.05405819,707.15,706.06,1.06261399]
[1735702832919,1.31460857,707.14,706.05,1.06261399]
[1735702833217,0.26055038,707.13,706.05,1.06261399]
[1735702833416,1.05405819,707.14,706.05,1.06261399]
[1735702834016,1.05405819,707.13,706.05,1.06261399]
[1735702835616,0.2605438,707.12,706.05,1.06261399]
[1735702836017,1.05405819,707.03,706.14,1.06261399]
[1735702836316,0.2605438,707.02,706.14,1.06261399]
[1735702836913,1.05405819,707.03,706.14,1.06261399]
[1735702837119,0.26057615,707.02,706.14,1.06261399]
[1735702837320,0.26057615,707.02,706.13,1.06261399]
[1735702837716,0.26058012,707.01,706.13,1.06261399]
[1735702837916,0.26058012,707.0,706.13,1.06261399]
[1735702838115,0.26058012,706.99,706.13,1.06261399]
[1735702838318,0.26058012,706.98,706.0,0.28328611]
[1735702838513,1.05405819,707.01,706.0,0.28328611]
[1735702839616,1.05405819,707.06,706.0,0.28328611]
[1735702839919,0.26057681,707.05,706.0,0.28328611]
[1735702841222,0.26057681,707.04,706.0,0.28328611]
[1735702841520,0.26057669,707.03,706.0,0.28328611]
[1735702841720,1.05405819,707.08,706.0,0.28328611]
[1735702842016,0.26057083,707.07,706.0,0.28328611]
[1735702842420,0.26057397,707.06,706.0,0.28328611]
[1735702842721,0.26057397,707.05,706.0,0.28328611]
[1735702842922,0.26057397,707.04,706.0,0.28328611]
[1735702843221,1.05405819,707.11,706.0,0.28328611]
[1735702843423,0.26058004,707.1,706.0,0.28328611]
[1735702845119,1.05405819,707.11,706.0,0.28328611]
[1735702845120,0.26057762,707.09,706.0,0.28328611]
[1735702845319,0.26057762,707.08,706.0,0.28328611]
[1735702845522,0.26057762,707.07,706.0,0.28328611]
[1735702845725,1.05405819,707.12,706.0,0.28328611]
[1735702845726,0.26057762,707.11,706.0,0.28328611]
[1735702845918,0.26057762,707.1,706.0,0.28328611]
[1735702846225,0.26057762,707.09,706.0,0.28328611]
[1735702846419,0.26057762,707.08,706.0,0.28328611]
[1735702846622,0.26057762,707.07,706.0,0.28328611]
[1735702846824,0.26057762,707.06,706.0,0.28328611]
[1735702847017,0.26057762,707.05,706.0,0.28328611]
[1735702847220,0.26057762,707.04,706.0,0.28328611]
[1735702847417,0.26057762,707.03,706.0,0.28328611]
[1735702847623,0.26057762,707.02,706.0,0.28328611]
[1735702847925,0.26057762,707.01,706.0,0.28328611]
[1735702848127,0.26057762,707.0,706.0,0.28328611]
[1735702848424,0.26057745,706.99,706.0,0.28328611]
[1735702848624,0.26057745,706.98,706.0,0.28328611]
[1735702848820,0.26057745,706.97,706.0,0.28328611]
[1735702849124,0.26057745,706.96,706.0,0.28328611]
[1735702849318,0.26057745,706.95,706.0,0.28328611]
[1735702849519,0.26057745,706.94,706.0,0.28328611]
[1735702849825,0.26057745,706.93,706.0,0.28328611]
[1735702850120,1.05405819,707.07,706.0,0.28328611]
[1735702850524,0.26057853,707.06,706.0,0.28328611]
[1735702851018,1.05405819,707.07,706.0,0.28328611]
[1735702851423,1.05405819,707.09,706.0,0.28328611]
[1735702852521,1.47767563,707.13,706.0,0.28328611]
[1735702856323,0.28283742,707.12,706.0,0.28328611]
[1735702857322,0.26059838,707.11,705.62,1.06261399]
[1735702858028,1.05405819,707.06,705.78,1.06261399]
[1735702858325,0.26059838,707.05,705.78,1.06261399]
[1735702858626,1.73859304,707.05,705.78,1.06261399]
[1735702858827,0.26059838,707.04,705.78,1.06261399]
[1735702859423,1.05405819,707.03,705.74,1.06261399]
[1735702859727,0.26059838,707.02,705.74,1.06261399]
[1735702860428,0.26059838,707.02,705.13,0.71410675]
[1735702860429,0.26059838,707.02,705.71,1.06261399]
[1735702860822,0.26062374,707.01,705.71,1.06261399]
[1735702861026,0.26062374,707.0,705.71,1.06261399]
[1735702861227,0.26062374,706.99,705.71,1.06261399]
[1735702861527,1.05405819,707.01,705.72,1.06261399]
[1735702861822,0.26059632,707.0,705.72,1.06261399]
[1735702862726,1.47799466,707.05,705.8,1.06261399]
[1735702862924,0.26058512,707.04,705.8,1.06261399]
[1735702863724,0.26058512,707.04,705.82,1.06261399]
[1735702865029,0.26058512,707.04,705.83,1.06261399]
[1735702866126,0.26058512,707.04,705.87,1.06261399]
[1735702867530,0.26058512,707.04,705.17,2.16950357]
[1735702867531,0.26058512,707.04,705.85,1.06261399]
[1735702868432,0.26059021,707.03,705.85,1.06261399]
[1735702868735,1.47799466,707.05,705.94,1.06261399]
[1735702868736,1.05405819,706.96,705.94,1.06261399]
[1735702868933,0.26059021,706.95,705.94,1.06261399]
[1735702869226,0.26059427,706.94,705.94,1.06261399]
[1735702869431,0.26059427,706.93,705.94,1.06261399]
[1735702869628,0.26059427,706.92,705.94,1.06261399]
[1735702869826,0.26059427,706.91,705.94,1.06261399]
[1735702870131,0.26059427,706.9,705.94,1.06261399]
[1735702870326,0.26059427,706.89,705.94,1.06261399]
[1735702870525,0.26059427,706.88,705.94,1.06261399]
[1735702870827,0.26059427,706.87,705.97,1.06261399]
[1735702871033,0.26059427,706.86,705.97,1.06261399]
[1735702871333,1.05405819,706.93,705.97,1.06261399]
[1735702871533,0.2605917,706.92,705.97,1.06261399]
[1735702871935,0.2605917,706.92,705.98,1.06261399]
[1735702872727,0.2605917,706.92,705.96,1.06261399]
[1735702872928,0.2605917,706.96,705.96,1.06261399]
[1735702873129,0.2605917,706.95,705.96,1.06261399]
[1735702873328,0.2605917,706.94,705.96,1.06261399]
[1735702873638,0.2605917,706.93,705.96,1.06261399]
[1735702873830,1.05405819,706.9,705.91,1.06261399]
[1735702874034,0.26062079,706.89,705.91,1.06261399]
[1735702875136,0.26062079,706.89,705.89,1.06261399]
[1735702875331,0.26062079,706.88,705.89,1.06261399]
[1735702875532,0.26062079,706.87,705.89,1.06261399]
[1735702875731,0.26062079,706.86,705.89,1.06261399]
[1735702875929,0.26062079,706.85,705.89,1.06261399]
[1735702876135,1.05405819,706.93,705.92,1.06261399]
[1735702876338,0.26060667,706.92,705.92,1.06261399]
[1735702877233,1.31466486,706.92,705.91,1.06261399]
[1735702877431,0.26060667,706.91,705.91,1.06261399]
[1735702878541,1.05405819,706.9,705.89,1.06261399]
[1735702878733,0.26060667,706.89,705.89,1.06261399]
[1735702879739,0.26060667,706.88,705.89,1.06261399]
[1735702879935,0.26060667,706.87,705.89,1.06261399]
[1735702880139,0.26060667,706.86,705.89,1.06261399]
[1735702880335,0.26060667,706.85,705.89,1.06261399]
[1735702880539,0.26060667,706.84,705.89,1.06261399]
[1735702880840,0.26060667,706.83,705.89,1.06261399]
[1735702881041,0.26061306,706.82,705.89,1.06261399]
[1735702881245,0.26061306,706.81,705.89,1.06261399]
[1735702881446,0.26061306,706.8,705.89,1.06261399]
[1735702881646,0.26061306,706.9,705.89,1.06261399]
[1735702881946,1.05405819,706.87,705.93,1.06261399]
[1735702882145,0.2606136,706.86,705.93,1.06261399]
[1735702883346,0.2606136,706.86,705.96,1.06261399]
[1735702883548,0.2606136,706.85,705.96,1.06261399]
[1735702883842,0.26060469,706.84,705.96,1.06261399]
[1735702884047,0.26060469,706.83,705.96,1.06261399]
[1735702884242,0.26060469,706.82,705.96,1.06261399]
[1735702884443,0.26061394,706.81,705.96,1.06261399]
[1735702884642,0.26061394,706.8,705.96,1.06261399]
[1735702884842,0.26061394,706.79,705.96,1.06261399]
[1735702885047,1.05405819,706.89,705.96,1.06261399]
[1735702885248,1.31466719,706.88,705.96,1.06261399]
[1735702885446,0.260609,706.87,705.96,1.06261399]
[1735702886546,0.260609,706.87,705.97,1.06261399]
[1735702886750,0.260609,706.86,705.97,1.06261399]
[1735702886949,0.260609,706.85,705.97,1.06261399]
[1735702887146,0.260609,706.84,705.97,1.06261399]
[1735702887346,0.26060395,706.83,705.97,1.06261399]
[1735702887548,0.26060395,706.82,705.97,1.06261399]
[1735702887750,0.26060395,706.81,705.97,1.06261399]
[1735702887950,0.26060395,706.8,705.97,1.06261399]
[1735702888149,0.26060395,706.79,705.97,1.06261399]
[1735702888345,1.05405819,706.87,705.97,1.06261399]
[1735702888551,0.26060996,706.86,705.97,1.06261399]
[1735702888752,1.05405819,706.85,705.96,1.06261399]
[1735702888944,0.26060996,706.84,705.96,1.06261399]
[1735702889453,0.26060996,706.84,705.97,1.06261399]
[1735702889848,1.05405819,706.85,705.97,1.06261399]
[1735702890148,0.26060745,706.84,705.97,1.06261399]
[1735702890754,1.05405819,706.83,705.97,1.06261399]
[1735702890952,0.26060745,706.82,705.97,1.06261399]
[1735702892155,1.05405819,706.81,705.95,1.06261399]
[1735702892355,0.26060745,706.8,705.95,1.06261399]
[1735702892655,1.05405819,706.81,705.95,1.06261399]
[1735702892958,1.47795804,706.98,705.92,1.06261399]
[1735702892959,1.05405819,706.87,705.92,1.06261399]
[1735702893150,0.26061027,706.86,705.92,1.06261399]
[1735702893353,0.26061032,706.85,705.92,1.06261399]
[1735702893554,0.26061032,706.84,705.92,1.06261399]
[1735702893757,0.26062815,706.83,705.92,1.06261399]
[1735702893949,0.26062815,706.82,705.92,1.06261399]
[1735702894155,0.26062815,706.81,705.9,1.06261399]
[1735702894450,0.26062815,706.8,705.9,1.06261399]
[1735702894655,0.26062815,706.79,705.9,1.06261399]
[1735702894855,0.26062815,706.78,705.9,1.06261399]
[1735702895056,0.26062815,706.77,705.9,1.06261399]
[1735702895256,1.05405819,706.85,705.9,1.06261399]
[1735702895458,0.26067085,706.84,705.9,1.06261399]
[1735702895758,1.05405819,706.81,705.68,1.06261399]
[1735702895958,0.26067085,706.8,705.68,1.06261399]
[1735702896853,0.26067085,706.8,705.32,1.06261399]
[1735702896854,0.26067085,706.8,705.64,1.06261399]
[1735702897054,0.26067085,706.79,705.64,1.06261399]
[1735702897261,1.05405819,706.83,705.64,1.06261399]
[1735702897456,0.26067011,706.82,705.64,1.06261399]